fUSD/lending_fUSD_20260407
["ID","MTS","AMOUNT","RATE_DAILY","PERIOD"]
[419955515,1775549446585,-226.9013837,0.00012,2]
[419955516,1775549446593,-4991.9,0.00012055,2]
[419955517,1775549446602,-150.99,0.00012087,2]
[419955518,1775549446612,-4334.82,0.00012087,2]
[419955519,1775549446622,-299.99,0.00012087,2]
[419955520,1775549446632,-150.99,0.00012087,2]
[419955521,1775549446641,-9999.99,0.00012087,2]
[419955522,1775549446651,-769.5,0.00012087,2]
[419955523,1775549446660,-2000.0,0.00012093,2]
[419955524,1775549446670,-500.0,0.00012105,2]
[419955525,1775549446680,-500.0,0.00012105,2]
[419955526,1775549446691,-500.0,0.00012105,2]
[419955527,1775549446701,-500.0,0.00012105,2]
[419955528,1775549446712,-500.0,0.00012105,2]
[419955529,1775549446722,-500.0,0.00012105,2]
[419955530,1775549446732,-500.0,0.00012105,2]
[419955531,1775549446742,-500.0,0.00012105,2]
[419955532,1775549446752,-500.0,0.00012105,2]
[419955533,1775549446761,-236.3240244,0.00012105,2]
[419955534,1775549446771,-226.9013837,0.00012119,2]
[419955535,1775549446782,-299.0,0.00012167,2]
[419955536,1775549446791,-600.0,0.00012196,2]
[419955537,1775549446801,-226.9013837,0.00012237,2]
[419955538,1775549446811,-155.0,0.00012312,2]
[419955539,1775549446822,-5791.98999232,0.00012316,2]
[419955540,1775549446832,-3916.0,0.00012329,2]
[419955541,1775549446843,-2387.0,0.00012329,2]
[419955542,1775549446852,-213.488234,0.00012329,2]
[419955543,1775549446862,-213.488234,0.00012329,2]
[419955544,1775549446872,-213.488234,0.00012329,2]
[419955545,1775549446882,-213.488234,0.00012329,2]
[419955546,1775549446892,-213.488234,0.00012329,2]
[419955547,1775549446902,-213.488234,0.00012329,2]
[419955548,1775549446912,-213.488234,0.00012329,2]
[419955549,1775549446922,-213.488234,0.00012329,2]
[419955550,1775549446932,-213.488234,0.00012329,2]
[419955551,1775549446942,-213.488234,0.00012329,2]
[419955552,1775549446952,-213.488234,0.00012329,2]
[419955553,1775549446962,-213.488234,0.00012329,2]
[419955554,1775549446972,-167.9268,0.000124,2]
[419955555,1775549446982,-39480.27084592,0.00012416,2]
[419955556,1775549446992,-26369.384418,0.00012416,2]
[419955557,1775549447003,-153.18,0.00012494,2]
[419955558,1775549447013,-646.65982734,0.00012513,2]
[419955559,1775549447022,-599.60298507,0.00012513,2]
[419955560,1775549447033,-213.488234,0.00012513,2]
[419955561,1775549447043,-213.488234,0.00012513,2]
[419955562,1775549447053,-213.488234,0.00012513,2]
[419955563,1775549447063,-213.488234,0.00012513,2]
[419955564,1775549447073,-200.0,0.00012514,2]
[419955565,1775549447082,-209.40437684,0.00012514,2]
[419955566,1775549447092,-1600.0,0.00012712,2]
[419955567,1775549447103,-1956.0,0.0001283,5]
[419955568,1775549447114,-274.06,0.00012877,2]
[419955569,1775549447123,-1957.0,0.00012893,5]
[419955570,1775549447133,-736.0,0.00012905,2]
[419955571,1775549447143,-823.0,0.00012905,2]
[419955572,1775549447153,-559.78413043,0.00012984,2]
[419955573,1775549447163,-1133.02,0.00012986,2]
[419955574,1775549447173,-4618.51996454,0.00012999,2]
[419955575,1775549447183,-250.0,0.00013,2]
[419955576,1775549447193,-464.50096566,0.00013,7]
[419955577,1775549447203,-504.0,0.00013,2]
[419955578,1775549447213,-181.289401,0.00013022,2]
[419955579,1775549447223,-159.48,0.00013055,2]
[419955580,1775549447233,-200.0,0.00013062,2]
[419955581,1775549447243,-217.15233878,0.00013062,2]
[419955582,1775549447254,-39480.27084592,0.00013112,2]
[419955583,1775549447264,-26369.384418,0.00013112,2]
[419955584,1775549447273,-2366.86,0.00013141,2]
[419955585,1775549447283,-252.50553481,0.00013163,2]
[419955586,1775549447293,-2445.8615435,0.00013196,2]
[419955587,1775549447303,-5791.98999232,0.00013212,2]
[419955588,1775549447313,-1416.95214066,0.00013238,2]
[419955589,1775549447323,-1963.0,0.00013239,5]
[419955590,1775549447332,-618.7441735,0.0001324,2]
[419955591,1775549447343,-255.85843741,0.0001324,2]
[419955592,1775549447353,-939.38552282,0.00013241,2]
[419955593,1775549447363,-554.61,0.00013243,2]
[419955594,1775549447373,-373.29994914,0.00013244,2]
[419955595,1775549447383,-444.84940596,0.00013244,2]
[419955596,1775549447393,-281.76226471,0.00013244,2]
[419955597,1775549447402,-152.0,0.00013245,3]
[419955598,1775549447412,-865.09962144,0.00013246,2]
[419955599,1775549447422,-1018.95481177,0.00013247,2]
[419955600,1775549447432,-1148.52826347,0.0001325,2]
[419955601,1775549447442,-502.48159556,0.00013272,2]
[419955602,1775549447452,-1500.0,0.00013292,2]
[419955603,1775549447464,-2000.0,0.00013302,2]
[419955604,1775549447474,-850.72029501,0.00013308,2]
[419955605,1775549447485,-243.87,0.00013371,2]
[419955606,1775549447495,-3240.0,0.00013425,2]
[419955607,1775549447505,-150.0,0.00013488,2]
[419955608,1775549447515,-150.0,0.00013488,2]
[419955609,1775549447524,-150.35659282,0.00013488,2]
[419955610,1775549447533,-150.0,0.00013488,2]
[419955611,1775549447542,-150.0,0.00013488,2]
[419955612,1775549447552,-150.0,0.00013488,2]
[419955613,1775549447562,-150.0,0.00013488,2]
[419955614,1775549447572,-150.0,0.00013488,2]
[419955615,1775549447582,-150.0,0.00013488,2]
[419955616,1775549447592,-150.0,0.00013488,2]
[419955617,1775549447602,-150.0,0.00013488,2]
[419955618,1775549447611,-150.0,0.00013488,2]
[419955619,1775549447621,-150.0,0.00013488,2]
[419955620,1775549447631,-150.0,0.00013488,2]
[419955621,1775549447640,-150.0,0.0001351,2]
[419955622,1775549447650,-150.0,0.0001352,2]
[419955623,1775549447660,-150.0,0.00013521,2]
[419955624,1775549447670,-213.488234,0.00013521,2]
[419955625,1775549447681,-213.488234,0.00013521,2]
[419955626,1775549447690,-213.488234,0.00013521,2]
[419955627,1775549447700,-213.48823,0.00013521,2]
[419955628,1775549447711,-150.0,0.00013525,2]
[419955629,1775549447720,-150.0,0.00013526,2]
[419955630,1775549447730,-150.0,0.00013529,2]
[419955631,1775549447740,-150.0,0.00013532,2]
[419955632,1775549447749,-153.18,0.00013536,2]
[419955633,1775549447759,-150.0,0.00013551,2]
[419955634,1775549447768,-150.0,0.00013554,2]
[419955635,1775549447778,-150.0,0.00013555,2]
[419955636,1775549447788,-150.0,0.00013563,2]
[419955637,1775549447798,-150.0,0.00013563,2]
[419955638,1775549447808,-150.0,0.00013565,2]
[419955639,1775549447819,-600.0,0.00013566,2]
[419955640,1775549447829,-150.0,0.00013567,2]
[419955641,1775549447839,-150.0,0.00013571,2]
[419955642,1775549447848,-150.0,0.00013577,2]
[419955643,1775549447858,-150.0,0.00013583,2]
[419955644,1775549447868,-150.0,0.00013588,2]
[419955645,1775549447878,-152.0,0.00013588,4]
[419955646,1775549447889,-562.12521433,0.00013598,2]
[419955647,1775549447899,-150.0,0.000136,2]
[419955648,1775549447910,-681.68420029,0.000136,2]
[419955649,1775549447920,-150.0,0.000136,2]
[419955650,1775549447930,-150.0,0.00013603,2]
[419955651,1775549447940,-150.0,0.00013603,2]
[419955652,1775549447949,-554.61,0.00013609,2]
[419955653,1775549447958,-200.0,0.0001361,2]
[419955654,1775549447971,-225.18697532,0.0001361,2]
[419955655,1775549447981,-150.0,0.00013613,2]
[419955656,1775549447991,-150.0,0.00013615,2]
[419955657,1775549448001,-150.0,0.00013621,2]
[419955658,1775549448012,-150.0,0.00013622,2]
[419955659,1775549448021,-150.0,0.00013635,2]
[419955660,1775549448031,-150.0,0.00013638,2]
[419955661,1775549448041,-150.0,0.00013638,2]
[419955662,1775549448051,-150.0,0.00013641,2]
[419955663,1775549448060,-150.0,0.00013644,2]
[419955664,1775549448070,-150.0,0.00013645,2]
[419955665,1775549448079,-150.0,0.00013647,2]
[419955666,1775549448088,-150.0,0.00013654,2]
[419955667,1775549448098,-150.0,0.00013654,2]
[419955668,1775549448108,-150.0,0.00013667,2]
[419955669,1775549448117,-500.0,0.00013673,2]
[419955670,1775549448127,-500.0,0.00013673,2]
[419955671,1775549448137,-500.0,0.00013673,2]
[419955672,1775549448146,-500.0,0.00013673,2]
[419955673,1775549448156,-500.0,0.00013673,2]
[419955674,1775549448166,-500.0,0.00013673,2]
[419955675,1775549448176,-500.5828717,0.00013673,2]
[419955676,1775549448186,-500.0,0.00013673,2]
[419955677,1775549448197,-500.0,0.00013673,2]
[419955678,1775549448208,-150.0,0.00013675,2]
[419955679,1775549448219,-150.0,0.00013679,2]
[419955680,1775549448229,-150.0,0.0001368,2]
[419955681,1775549448239,-150.0,0.00013687,2]
[419955682,1775549448249,-514.0822488,0.00013689,2]
[419955683,1775549448259,-150.0,0.00013689,2]
[419955684,1775549448269,-150.0,0.00013696,2]
[419955685,1775549448278,-511.95001798,0.00013698,2]
[419955686,1775549448289,-510.42702716,0.00013698,2]
[419955687,1775549448299,-500.0,0.00013698,2]
[419955688,1775549448309,-500.0,0.00013698,2]
[419955689,1775549448319,-500.0,0.00013698,2]
[419955690,1775549448330,-500.0,0.00013698,2]
[419955691,1775549448340,-500.0,0.00013698,2]
[419955692,1775549448351,-500.0,0.00013698,2]
[419955693,1775549448361,-500.0,0.00013698,2]
[419955694,1775549448371,-500.0,0.00013698,2]
[419955695,1775549448380,-500.0,0.00013698,2]
[419955696,1775549448390,-500.0,0.00013698,2]
[419955697,1775549448400,-500.0,0.00013698,2]
[419955698,1775549448409,-352.42965541,0.00013698,2]
[419955699,1775549448419,-500.0,0.00013698,2]
[419955700,1775549448429,-500.0,0.00013698,2]
[419955701,1775549448439,-500.0,0.00013698,2]
[419955702,1775549448449,-500.0,0.00013698,2]
[419955703,1775549448459,-500.0,0.00013698,2]
[419955704,1775549448469,-597.61685429,0.00013698,2]
[419955705,1775549448478,-502.06502755,0.00013698,2]
[419955706,1775549448487,-506.20626753,0.00013698,2]
[419955707,1775549448497,-520.03155247,0.00013698,2]
[419955708,1775549448506,-500.0,0.00013698,2]
[419955709,1775549448517,-500.0,0.00013698,2]
[419955710,1775549448526,-560.32918501,0.00013698,2]
[419955711,1775549448536,-500.0,0.00013698,2]
[419955712,1775549448546,-500.0,0.00013698,2]
[419955713,1775549448555,-500.0,0.00013698,2]
[419955714,1775549448565,-500.0,0.00013698,2]
[419955715,1775549448574,-500.0,0.00013698,2]
[419955716,1775549448584,-500.0,0.00013698,2]
[419955717,1775549448594,-500.0,0.00013698,2]
[419955718,1775549448603,-500.0,0.00013698,2]
[419955719,1775549448613,-500.0,0.00013698,2]
[419955720,1775549448622,-500.0,0.00013698,2]
[419955721,1775549448632,-516.4326486,0.00013698,2]
[419955722,1775549448641,-500.0,0.00013698,2]
[419955723,1775549448651,-500.0,0.00013698,2]
[419955724,1775549448660,-500.0,0.00013698,2]
[419955725,1775549448670,-500.0,0.00013698,2]
[419955726,1775549448679,-500.0,0.00013698,2]
[419955727,1775549448689,-500.0,0.00013698,2]
[419955728,1775549448699,-500.0,0.00013698,2]
[419955729,1775549448708,-500.0,0.00013698,2]
[419955730,1775549448718,-500.0,0.00013698,2]
[419955731,1775549448728,-500.0,0.00013698,2]
[419955732,1775549448737,-514.03810544,0.00013698,2]
[419955733,1775549448747,-507.19603663,0.00013698,2]
[419955734,1775549448756,-500.0,0.00013698,2]
[419955735,1775549448765,-500.0,0.00013698,2]
[419955736,1775549448775,-500.0,0.00013698,2]
[419955737,1775549448784,-500.0,0.00013698,2]
[419955738,1775549448794,-500.0,0.00013698,2]
[419955739,1775549449187,-500.0,0.00013698,2]
[419955740,1775549449213,-500.0,0.00013698,2]
[419955741,1775549449222,-500.0,0.00013698,2]
[419955742,1775549449232,-500.0,0.00013698,2]
[419955743,1775549449242,-500.0,0.00013698,2]
[419955744,1775549449252,-513.05326966,0.00013698,2]
[419955745,1775549449261,-504.97153682,0.00013698,2]
[419955746,1775549449271,-500.0,0.00013698,2]
[419955747,1775549449281,-500.0,0.00013698,2]
[419955748,1775549449290,-500.0,0.00013698,2]
[419955749,1775549449300,-500.0,0.00013698,2]
[419955750,1775549449310,-500.0,0.00013698,2]
[419955751,1775549449320,-500.0,0.00013698,2]
[419955752,1775549449330,-500.0,0.00013698,2]
[419955753,1775549449340,-500.0,0.00013698,2]
[419955754,1775549449349,-500.0,0.00013698,2]
[419955755,1775549449359,-500.0,0.00013698,2]
[419955756,1775549449369,-508.5252397,0.00013698,2]
[419955757,1775549449379,-502.11524689,0.00013698,2]
[419955758,1775549449388,-500.0,0.00013698,2]
[419955759,1775549449398,-503.23301216,0.00013698,2]
[419955760,1775549449407,-500.0,0.00013698,2]
[419955761,1775549449416,-500.0,0.00013698,2]
[419955762,1775549449426,-500.0,0.00013698,2]
[419955763,1775549449435,-500.0,0.00013698,2]
[419955764,1775549449444,-500.0,0.00013698,2]
[419955765,1775549449455,-500.0,0.00013698,2]
[419955766,1775549449466,-500.0,0.00013698,2]
[419955767,1775549449475,-603.98614699,0.00013698,2]
[419955768,1775549449484,-500.0,0.00013698,2]
[419955769,1775549449494,-504.47726605,0.00013698,2]
[419955770,1775549449503,-500.0,0.00013698,2]
[419955771,1775549449513,-500.0,0.00013698,2]
[419955772,1775549449523,-500.0,0.00013698,2]
[419955773,1775549449532,-500.0,0.00013698,2]
[419955774,1775549449541,-500.0,0.00013698,2]
[419955775,1775549449550,-500.0,0.00013698,2]
[419955776,1775549449560,-500.0,0.00013698,2]
[419955777,1775549449570,-500.0,0.00013698,2]
[419955778,1775549449579,-500.0,0.00013698,2]
[419955779,1775549449589,-500.0,0.00013698,2]
[419955780,1775549449598,-505.05899379,0.00013698,2]
[419955781,1775549449607,-507.14802901,0.00013698,2]
[419955782,1775549449617,-500.0,0.00013698,2]
[419955783,1775549449627,-500.0,0.00013698,2]
[419955784,1775549449637,-500.0,0.00013698,2]
[419955785,1775549449646,-500.0,0.00013698,2]
[419955786,1775549449656,-500.0,0.00013698,2]
[419955787,1775549449665,-433.614403,0.00013698,2]
[419955788,1775549449675,-306.4073364,0.00013698,2]
[419955789,1775549449684,-500.0,0.00013698,2]
[419955790,1775549449694,-500.0,0.00013698,2]
[419955791,1775549449703,-500.0,0.00013698,2]
[419955792,1775549449713,-500.4,0.00013698,2]
[419955793,1775549449722,-500.0,0.00013698,2]
[419955794,1775549449732,-500.0,0.00013698,2]
[419955795,1775549449741,-509.57,0.00013698,2]
[419955796,1775549449750,-500.0,0.00013698,2]
[419955797,1775549449759,-186.85155024,0.00013698,2]
[419955798,1775549449769,-500.0,0.00013698,2]
[419955799,1775549449778,-500.0,0.00013698,2]
[419955800,1775549449788,-500.0,0.00013698,2]
[419955801,1775549449796,-500.0,0.00013698,2]
[419955802,1775549449806,-500.0,0.00013698,2]
[419955803,1775549449815,-500.0,0.00013698,2]
[419955804,1775549449825,-500.0,0.00013698,2]
[419955805,1775549449834,-500.0,0.00013698,2]
[419955806,1775549449843,-500.0,0.00013698,2]
[419955807,1775549449853,-500.0,0.00013698,2]
[419955808,1775549449862,-500.0,0.00013698,2]
[419955809,1775549449871,-500.0,0.00013699,2]
[419955810,1775549449880,-500.0,0.00013699,2]
[419955811,1775549449889,-180.29873879,0.00013699,2]
[419955812,1775549449899,-150.0,0.00013699,2]
[419955813,1775549449908,-150.0,0.00013699,2]
[419955814,1775549449918,-150.0,0.00013699,2]
[419955815,1775549449928,-150.0,0.00013699,2]
[419955816,1775549449938,-166.66,0.00013699,2]
[419955817,1775549449948,-200.0,0.00013699,2]
[419955818,1775549449957,-2116.33,0.00013699,2]
[419955819,1775549449966,-151.0,0.00013699,2]
[419955820,1775549449976,-151.0,0.00013699,2]
[419955821,1775549449985,-151.0,0.00013699,2]
[419955822,1775549449995,-229.134366,0.00013699,2]
[419955823,1775549450005,-151.0,0.00013699,2]
[419955824,1775549450015,-151.0,0.00013699,2]
[419955825,1775549450024,-151.0,0.00013699,2]
[419955826,1775549450034,-152.342806,0.00013699,2]
[419955827,1775549450043,-151.0,0.00013699,2]
[419955828,1775549450053,-152.017453,0.00013699,2]
[419955829,1775549450063,-151.0,0.00013699,2]
[419955830,1775549450072,-151.0,0.00013699,2]
[419955831,1775549450082,-151.0,0.00013699,2]
[419955832,1775549450092,-151.0,0.00013699,2]
[419955833,1775549450101,-151.0,0.00013699,2]
[419955834,1775549450111,-151.0,0.00013699,2]
[419955835,1775549450120,-151.0,0.00013699,2]
[419955836,1775549450130,-151.0,0.00013699,2]
[419955837,1775549450139,-151.0,0.00013699,2]
[419955838,1775549450149,-151.0,0.00013699,2]
[419955839,1775549450159,-300.354092,0.00013699,2]
[419955840,1775549450169,-151.0,0.00013699,2]
[419955841,1775549450178,-151.0,0.00013699,2]
[419955842,1775549450188,-151.0,0.00013699,2]
[419955843,1775549450197,-152.798431,0.00013699,2]
[419955844,1775549450207,-153.141915,0.00013699,2]
[419955845,1775549450218,-152.78038,0.00013699,2]
[419955846,1775549450228,-153.061842,0.00013699,2]
[419955847,1775549450238,-151.127848,0.00013699,2]
[419955848,1775549450247,-152.647266,0.00013699,2]
[419955849,1775549450257,-151.0,0.00013699,2]
[419955850,1775549450267,-297.574511,0.00013699,2]
[419955851,1775549450277,-151.0,0.00013699,2]
[419955852,1775549450286,-151.0,0.00013699,2]
[419955853,1775549450296,-203.593663,0.00013699,2]
[419955854,1775549450305,-151.0,0.00013699,2]
[419955855,1775549450315,-151.402677,0.00013699,2]
[419955856,1775549450324,-313.400411,0.00013699,2]
[419955857,1775549450335,-313.400411,0.00013699,2]
[419955858,1775549450345,-313.400411,0.00013699,2]
[419955859,1775549450355,-313.400411,0.00013699,2]
[419955860,1775549450364,-313.400411,0.00013699,2]
[419955861,1775549450374,-663.647853,0.00013699,2]
[419955862,1775549450384,-313.400411,0.00013699,2]
[419955863,1775549450394,-663.647853,0.00013699,2]
[419955864,1775549450404,-313.400411,0.00013699,2]
[419955865,1775549450413,-663.647853,0.00013699,2]
[419955866,1775549450423,-313.400411,0.00013699,2]
[419955867,1775549450434,-663.647853,0.00013699,2]
[419955868,1775549450444,-313.400411,0.00013699,2]
[419955869,1775549450455,-663.647853,0.00013699,2]
[419955870,1775549450465,-313.400411,0.00013699,2]
[419955871,1775549450475,-663.647853,0.00013699,2]
[419955872,1775549450485,-313.400411,0.00013699,2]
[419955873,1775549450495,-663.647853,0.00013699,2]
[419955874,1775549450504,-313.400411,0.00013699,2]
[419955875,1775549450514,-663.647853,0.00013699,2]
[419955876,1775549450523,-313.400411,0.00013699,2]
[419955877,1775549450534,-313.400411,0.00013699,2]
[419955878,1775549450544,-663.647853,0.00013699,2]
[419955879,1775549450553,-313.400411,0.00013699,2]
[419955880,1775549450563,-663.647853,0.00013699,2]
[419955881,1775549450573,-313.400411,0.00013699,2]
[419955882,1775549450583,-663.647853,0.00013699,2]
[419955883,1775549450592,-313.400411,0.00013699,2]
[419955884,1775549450602,-151.0,0.00013699,2]
[419955885,1775549450612,-663.647853,0.00013699,2]
[419955886,1775549450622,-313.400411,0.00013699,2]
[419955887,1775549450631,-663.647853,0.00013699,2]
[419955888,1775549450642,-313.400411,0.00013699,2]
[419955889,1775549450652,-313.400417,0.00013699,2]
[419955890,1775549450661,-663.647853,0.00013699,2]
[419955891,1775549450671,-663.647853,0.00013699,2]
[419955892,1775549450681,-663.647853,0.00013699,2]
[419955893,1775549450690,-663.647853,0.00013699,2]
[419955894,1775549450699,-663.647853,0.00013699,2]
[419955895,1775549450709,-663.647853,0.00013699,2]
[419955896,1775549450720,-663.647859,0.00013699,2]
[419955897,1775549450730,-151.0,0.00013699,2]
[419955898,1775549450740,-151.0,0.00013699,2]
[419955899,1775549450750,-151.0,0.00013699,2]
[419955900,1775549450759,-151.0,0.00013699,2]
[419955901,1775549450769,-204.947488,0.00013699,2]
[419955902,1775549450779,-151.0,0.00013699,2]
[419955903,1775549450789,-204.947488,0.00013699,2]
[419955904,1775549450798,-284.430268,0.00013699,2]
[419955905,1775549450808,-204.947488,0.00013699,2]
[419955906,1775549450817,-204.947488,0.00013699,2]
[419955907,1775549450827,-204.947488,0.00013699,2]
[419955908,1775549450836,-204.947488,0.00013699,2]
[419955909,1775549450847,-204.947488,0.00013699,2]
[419955910,1775549450855,-151.0,0.00013699,2]
[419955911,1775549450865,-204.947488,0.00013699,2]
[419955912,1775549450874,-151.0,0.00013699,2]
[419955913,1775549450884,-151.0,0.00013699,2]
[419955914,1775549450893,-204.947488,0.00013699,2]
[419955915,1775549450901,-151.0,0.00013699,2]
[419955916,1775549450911,-151.0,0.00013699,2]
[419955917,1775549450921,-204.947488,0.00013699,2]
[419955918,1775549450930,-151.0,0.00013699,2]
[419955919,1775549450940,-204.947488,0.00013699,2]
[419955920,1775549450950,-151.0,0.00013699,2]
[419955921,1775549450959,-151.0,0.00013699,2]
[419955922,1775549450970,-204.947488,0.00013699,2]
[419955923,1775549450979,-151.0,0.00013699,2]
[419955924,1775549450989,-204.947488,0.00013699,2]
[419955925,1775549450998,-153.82233,0.00013699,2]
[419955926,1775549451008,-151.0,0.00013699,2]
[419955927,1775549451017,-204.947488,0.00013699,2]
[419955928,1775549451027,-233.905463,0.00013699,2]
[419955929,1775549451037,-204.947488,0.00013699,2]
[419955930,1775549451047,-204.947488,0.00013699,2]
[419955931,1775549451056,-204.947488,0.00013699,2]
[419955932,1775549451066,-204.947488,0.00013699,2]
[419955933,1775549451076,-204.947488,0.00013699,2]
[419955934,1775549451085,-204.947487,0.00013699,2]
[419955935,1775549451095,-151.0,0.00013699,2]
[419955936,1775549451104,-151.0,0.00013699,2]
[419955937,1775549451114,-151.0,0.00013699,2]
[419955938,1775549451123,-151.0,0.00013699,2]
[419955939,1775549451133,-151.0,0.00013699,2]
[419955940,1775549451142,-158.036315,0.00013699,2]
[419955941,1775549451151,-151.0,0.00013699,2]
[419955942,1775549451161,-151.0,0.00013699,2]
[419955943,1775549451170,-151.0,0.00013699,2]
[419955944,1775549451179,-151.0,0.00013699,2]
[419955945,1775549451189,-151.0,0.00013699,2]
[419955946,1775549451198,-151.0,0.00013699,2]
[419955947,1775549451208,-151.0,0.00013699,2]
[419955948,1775549451218,-151.0,0.00013699,2]
[419955949,1775549451227,-151.0,0.00013699,2]
[419955950,1775549451237,-151.0,0.00013699,2]
[419955951,1775549451246,-151.0,0.00013699,2]
[419955952,1775549451255,-151.0,0.00013699,2]
[419955953,1775549451265,-163.994307,0.00013699,2]
[419955954,1775549451274,-151.0,0.00013699,2]
[419955955,1775549451284,-151.0,0.00013699,2]
[419955956,1775549451297,-151.0,0.00013699,2]
[419955957,1775549451306,-151.0,0.00013699,2]
[419955958,1775549451316,-151.0,0.00013699,2]
[419955959,1775549451326,-151.0,0.00013699,2]
[419955960,1775549451335,-151.0,0.00013699,2]
[419955961,1775549451345,-151.0,0.00013699,2]
[419955962,1775549451354,-151.0,0.00013699,2]
[419955963,1775549451364,-558.38193,0.00013699,2]
[419955964,1775549451374,-151.0,0.00013699,2]
[419955965,1775549451384,-558.38193,0.00013699,2]
[419955966,1775549451394,-151.0,0.00013699,2]
[419955967,1775549451403,-558.38193,0.00013699,2]
[419955968,1775549451413,-151.0,0.00013699,2]
[419955969,1775549451423,-558.38193,0.00013699,2]
[419955970,1775549451433,-151.0,0.00013699,2]
[419955971,1775549451442,-558.38193,0.00013699,2]
[419955972,1775549451452,-558.38193,0.00013699,2]
[419955973,1775549451462,-151.0,0.00013699,2]
[419955974,1775549451472,-558.38193,0.00013699,2]
[419955975,1775549451481,-260.854308,0.00013699,2]
[419955976,1775549451490,-558.38193,0.00013699,2]
[419955977,1775549451500,-1215.539919,0.00013699,2]
[419955978,1775549451510,-1215.539919,0.00013699,2]
[419955979,1775549451518,-1215.539919,0.00013699,2]
[419955980,1775549451527,-1215.539919,0.00013699,2]
[419955981,1775549451537,-1215.539919,0.00013699,2]
[419955982,1775549451546,-182.281929,0.00013699,2]
[419955983,1775549451557,-1215.539919,0.00013699,2]
[419955984,1775549451567,-1215.539919,0.00013699,2]
[419955985,1775549451576,-558.38193,0.00013699,2]
[419955986,1775549451587,-1215.539919,0.00013699,2]
[419955987,1775549451596,-558.38193,0.00013699,2]
[419955988,1775549451606,-1215.539919,0.00013699,2]
[419955989,1775549451616,-558.38193,0.00013699,2]
[419955990,1775549451626,-558.38193,0.00013699,2]
[419955991,1775549451636,-558.38193,0.00013699,2]
[419955992,1775549451646,-558.38193,0.00013699,2]
[419955993,1775549451656,-558.38193,0.00013699,2]
[419955994,1775549451666,-558.38193,0.00013699,2]
[419955995,1775549451675,-558.38193,0.00013699,2]
[419955996,1775549451685,-558.38193,0.00013699,2]
[419955997,1775549451694,-558.38193,0.00013699,2]
[419955998,1775549451703,-558.381934,0.00013699,2]
[419955999,1775549451714,-151.0,0.00013699,2]
[419956000,1775549451724,-151.0,0.00013699,2]
[419956001,1775549451734,-151.0,0.00013699,2]
[419956002,1775549451743,-151.0,0.00013699,2]
[419956003,1775549451752,-151.0,0.00013699,2]
[419956004,1775549451761,-151.0,0.00013699,2]
[419956005,1775549451770,-1215.539919,0.00013699,2]
[419956006,1775549451780,-1215.539919,0.00013699,2]
[419956007,1775549451789,-1215.539919,0.00013699,2]
[419956008,1775549451799,-1215.539919,0.00013699,2]
[419956009,1775549451808,-1215.539919,0.00013699,2]
[419956010,1775549451818,-1215.539919,0.00013699,2]
[419956011,1775549451826,-1215.539919,0.00013699,2]
[419956012,1775549451836,-1215.539919,0.00013699,2]
[419956013,1775549451845,-151.0,0.00013699,2]
[419956014,1775549451855,-1215.539919,0.00013699,2]